[Event "1st FIDE Olympiad DIS 2023"]
[Site "Belgrade"]
[Date "2023.02.03"]
[Round "5.5"]
[White "Soltanov, Serik"]
[Black "Jankunas, Tomas"]
[Result "1/2-1/2"]
[ECO "E94"]
[WhiteElo "2266"]
[BlackElo "2127"]
[Annotator "TA"]
[PlyCount "36"]
[EventDate "2023.01.30"]
[EventType "team-tourn"]
[EventCountry "SRB"]
[SourceTitle "playchess.com"]
[Source "ChessBase"]
[SourceQuality "1"]
[WhiteTeam "Kazakhstan"]
[BlackTeam "ICCD"]
[WhiteTeamCountry "KAZ"]
[BlackTeamCountry "LTU"]
[TimeControl "40/5400+30:1800+30"]

{[%evp 19,23,0,12,12,50,44]} 1. d4 {[%emt 0:00:15]} Nf6 {[%emt 0:00:09]} 2. c4 {[%emt 0:00:07]} g6 {[%emt 0:00:03]} 3. Nc3 {[%emt 0:00:07]} Bg7 {[%emt 0:00:05]} 4. e4 {[%emt 0:00:06]} d6 {[%emt 0:00:05]} 5. Nf3 {[%emt 0:00:06]} O-O {[%emt 0:00:13]} 6. Be2 {[%emt 0:00:06]} e5 {[%emt 0:00:16]} 7. O-O {[%emt 0:00:08]} exd4 {[%emt 0:01:06]} 8. Nxd4 {[%emt 0:00:07]} Re8 {[%emt 0:00:04]} 9. f3 {[%emt 0:00:15]} Nc6 {[%emt 0:00:42]} 10. Nc2 {[%emt 0:09:15]} Nd7 {[%emt 0:11:33]} 11. Be3 {[%emt 0:05:47] E94: King's Indian: Classical: 6 Be2 e5 7 0-0: Various Black 7th moves.} Nf8 {[%emt 0:03:31]} 12. Qd2 {[%emt 0:03:13] [#]} {Predecessor:} Bd7 $146 13. Rab1 a5 14. Bg5 f6 15. Bh4 Be6 16. Nd5 Nd7 17. b3 Qb8 18. Kh1 b6 {1-0 Baumhauer,C (2097)-Msellek,I (1942) Montigny le Bretonneux-A 8th 2009 (1)} 1/2-1/2

[Event "1st FIDE Olympiad DIS 2023"]
[Site "Belgrade"]
[Date "2023.02.03"]
[Round "5.6"]
[White "Streltsov, Alexey"]
[Black "Lopez, Henry"]
[Result "1-0"]
[ECO "D00"]
[WhiteElo "2317"]
[BlackElo "2102"]
[Annotator "TA"]
[PlyCount "73"]
[EventDate "2023.01.30"]
[EventType "team-tourn"]
[EventCountry "SRB"]
[SourceTitle "playchess.com"]
[Source "ChessBase"]
[SourceQuality "1"]
[WhiteTeam "Israel"]
[BlackTeam "Philippines"]
[WhiteTeamCountry "ISR"]
[BlackTeamCountry "PHI"]
[TimeControl "40/5400+30:1800+30"]

{[%evp 9,73,-4,21,-3,5,-12,-20,-26,44,-8,35,24,85,0,0,6,18,12,9,15,57,43,72,0,6,0,4,0,0,0,251,287,283,291,287,283,300,275,465,458,454,466,449,466,452,388,359,389,376,386,426,434,447,458,475,442,542,462,902,883,976,964,5810,1338,29968,29968]} 1. d4 {[%emt 0:00:07]} d5 {[%emt 0:00:13]} 2. Nc3 {[%emt 0:00:12]} Nf6 {[%emt 0:00:29]} 3. Bf4 {[%emt 0:00:11]} a6 {[%emt 0:00:32]} 4. e3 {[%emt 0:00:08]} e6 {[%emt 0:01:24]} 5. g4 {[%emt 0:00:12][%cal Bg2g4,Bg4g5][%mdl 32]} h6 {[%emt 0:00:30]} 6. h4 {[%emt 0:00:54] D00: 1 d4 d5: Unusual lines.} c5 {[%emt 0:00:17]} 7. Bg2 $1 {[%emt 0:08:45][%mdl 4] is more profitable than 7.Qf3 at the moment.} Nc6 {[%emt 0:06:44]} 8. g5 {[%emt 0:01:23] [#] The position is equal.} Ng8 $146 {[%emt 0:04:33]} (8... hxg5 $11 9. hxg5 Rxh1 10. Bxh1 cxd4 11. exd4 Ng8) ({Predecessor:} 8... hxg5 9. hxg5 Rxh1 10. Bxh1 Nd7 11. Nf3 Qb6 12. Rb1 g6 13. a3 Qa5 14. Qd2 Nb6 {0-1 Madaminov,M (2441)-Andreikin,D (2729) Titled Tuesday intern op 25th Oct Early blitz 2022 (10)}) 9. Nge2 {[%emt 0:15:24]} (9. dxc5 $14 Bxc5 10. Qd3) 9... Bd6 {[%emt 0:02:11]} 10. dxc5 {[%emt 0:08:17]} Bxc5 {[%emt 0:00:49] [#]} (10... Bxf4 $11 {keeps the balance.} 11. Nxf4 (11. exf4 Qa5 $11) 11... hxg5 12. hxg5 Rxh1+ 13. Bxh1 Qxg5) 11. Qd2 {[%emt 0:00:16]} (11. Qd3 $1 $16) 11... hxg5 $11 {[%emt 0:00:36]} 12. hxg5 {[%emt 0:00:10]} Rxh1+ {[%emt 0:00:10]} 13. Bxh1 {[%emt 0:00:07]} Nge7 $1 {[%emt 0:00:23]} 14. O-O-O {[%emt 0:03:11][%cal Be1c1,Bc1b1,Bb1a2,Ba2a3,Ba3b2][%mdl 32]} Qa5 {[%emt 0:06:24]} 15. Kb1 {[%emt 0:13:17]} Bd7 {[%emt 0:01:29]} 16. Bg2 {[%emt 0:17:55]} ({White should play} 16. a3 $16) 16... O-O-O {[%emt 0:00:45]} 17. Nc1 {[%emt 0:00:06] Nb3 is the strong threat.} Bb4 {[%emt 0:03:28]} 18. Nb3 {[%emt 0:00:10] Against e5} (18. Nd3 {simplifies} Bxc3 19. Qxc3 Qxc3 20. bxc3 Rh8 21. c4) 18... Bxc3 {[%emt 0:23:18]} 19. Qd3 {[%emt 0:09:12]} Qxa2+ {[%emt 0:12:48][%mdl 8192] Black is now going downhill.} 20. Kxa2 $18 {[%emt 0:00:16]} Nb4+ {[%emt 0:00:11]} 21. Ka3 {[%emt 0:00:36]} Nxd3 {[%emt 0:00:14]} 22. cxd3 {[%emt 0:00:49]} e5 {[%emt 0:16:35] Strongly threatening ...Bxb2+.} 23. Bg3 {[%emt 0:01:04]} Bxb2+ {[%emt 0:06:57]} (23... Bg4 $2 24. Rc1 $18) (23... Nf5 24. bxc3 Nxg3 25. fxg3 b6) 24. Kxb2 {[%emt 0:00:03]} f6 {[%emt 0:00:16]} 25. Rc1+ {[%emt 0:00:32]} Kb8 {[%emt 0:04:17]} 26. d4 {[%emt 0:00:42]} Nf5 {[%emt 0:04:10]} 27. dxe5 {[%emt 0:07:51]} ({Not} 27. Bxd5 Ba4 28. Bf7 Nxg3 $18) 27... Nxg3 {[%emt 0:00:21]} 28. fxg3 {[%emt 0:00:05]} fxe5 {[%emt 0:00:19]} 29. Bxd5 {[%emt 0:00:12]} b6 {[%emt 0:01:42]} 30. e4 {[%emt 0:02:11]} Rf8 {[%emt 0:00:20]} 31. Rh1 {[%emt 0:03:33]} Rf2+ {[%emt 0:00:39]} 32. Kc1 {[%emt 0:00:05]} a5 {[%emt 0:01:36]} 33. Nd2 {[%emt 0:01:43] Wards off Rf3. aiming for Rh7.} b5 {[%emt 0:00:44]} (33... Rg2 $142 34. Rh7 Rg1+ 35. Kb2 Rg2 36. Rxg7 Bb5 37. Rb7+ Kc8) 34. Rh7 {[%emt 0:00:57]} Kc7 {[%emt 0:00:24]} 35. Rxg7 {[%emt 0:00:15]} Kd6 {[%emt 0:00:02]} 36. g6 {[%emt 0:01:45][%cal Og7d7] White threatens Rxd7+! and mate.} Rg2 {[%emt 0:00:08] [#]} 37. Rxd7+ $1 {[%emt 0:00:30] Weighted Error Value: White=0.20 (precise) /Black=0.61} 1-0

[Event "1st FIDE Olympiad DIS 2023"]
[Site "Belgrade"]
[Date "2023.02.03"]
[Round "5.7"]
[White "Kozhabekov, Adilkhan"]
[Black "Johansen, Torbjorn Reidar"]
[Result "1/2-1/2"]
[ECO "D34"]
[WhiteElo "1939"]
[BlackElo "1764"]
[Annotator "TA"]
[PlyCount "116"]
[EventDate "2023.01.30"]
[EventType "team-tourn"]
[EventCountry "SRB"]
[SourceTitle "playchess.com"]
[Source "ChessBase"]
[SourceQuality "1"]
[WhiteTeam "Kazakhstan"]
[BlackTeam "ICCD"]
[WhiteTeamCountry "KAZ"]
[BlackTeamCountry "NOR"]
[TimeControl "40/5400+30:1800+30"]

{[%evp 20,116,65,66,95,52,82,93,83,18,62,35,48,70,162,112,225,115,102,107,109,112,109,110,115,114,117,116,135,136,130,130,130,123,123,102,102,87,194,0,100,0,126,63,63,63,63,63,89,22,40,0,65,64,62,54,139,139,138,131,141,105,108,0,0,0,0,0,0,0,0,0,0,0,0,0,0,0,0,0,0,0,0,0,0,0,0,0,0,0,0,0,0,0,0,0,0,0,0]} 1. Nf3 {[%emt 0:00:28]} d5 {[%emt 0:00:25]} 2. d4 {[%emt 0:00:50]} Nf6 {[%emt 0:00:14]} 3. g3 {[%emt 0:00:26]} e6 {[%emt 0:01:30]} 4. Bg2 {[%emt 0:00:05]} c5 {[%emt 0:01:04]} 5. O-O {[%emt 0:02:24]} Be7 {[%emt 0:02:53]} 6. c4 {[%emt 0:06:29]} O-O {[%emt 0:02:20]} 7. cxd5 {[%emt 0:00:57]} exd5 {[%emt 0:01:11]} 8. Nc3 {[%emt 0:00:22]} cxd4 {[%emt 0:04:32]} 9. Nxd4 {[%emt 0:00:09]} Nc6 {[%emt 0:00:18]} 10. Bf4 {[%emt 0:04:28]} a6 {[%emt 0:05:34]} 11. Rc1 {[%emt 0:03:15][%cal Ba1c1,Bc1c5,Bc5d5][%mdl 32]} Qb6 {[%emt 0:03:14] D34: Tarrasch Defence: 6 g3 Nf6 7 Bg2 Be7.} 12. Nb3 {[%emt 0:06:11] [#]} Rd8 $146 {[%emt 0:04:23]} ({Predecessor:} 12... Be6 13. Be3 Qd8 14. Qd2 Bb4 15. Rfd1 Qe7 16. Bg5 Rfd8 17. Qf4 Bxc3 18. bxc3 h6 19. Bxf6 Qxf6 20. Qxf6 gxf6 {½-½ Vieweg,K-Tichatschke,W Oberliga Ost-A 0203 2002 (2.7)}) 13. Na4 {[%emt 0:05:20]} (13. Nxd5 $6 Nxd5 14. Bxd5 Bf5 $11) (13. Bxd5 $6 Be6 14. Be3 Qb4 $11) 13... Qb4 {[%emt 0:05:58] White is better.} 14. Nac5 {[%emt 0:16:12]} (14. Nbc5 $1 $16) 14... Bxc5 {[%emt 0:00:35]} 15. Rxc5 {[%emt 0:00:24]} Be6 {[%emt 0:03:06]} 16. Bg5 {[%emt 0:11:08]} Ne4 {[%emt 0:20:27]} (16... Rac8 $14) 17. Bxe4 {[%emt 0:20:35] This pair of bishops is nice.} (17. Bxd8 Nxc5 18. Bc7 d4 $11) (17. a3 $18 Qa4 18. Bxd8 Nxc5 19. Nxc5 {[%mdl 64] Discovered Attack} Qxd1 20. Rxd1 Rxd8 21. b4 (21. Nxb7 Rb8 $16)) 17... f6 {[%emt 0:03:03]} (17... dxe4 $16 18. Bxd8 Bxb3) 18. Bxd5 {[%emt 0:07:04]} ({Weaker is} 18. Bxh7+ Kxh7 19. Be3 Rac8 $16) (18. Bxf6 $1 $18 gxf6 19. Bxd5 Bxd5 20. Rxd5) 18... Bxd5 $16 {[%emt 0:00:28]} 19. Rxd5 {[%emt 0:00:07]} fxg5 {[%emt 0:00:12]} 20. Qd3 {[%emt 0:01:53]} h6 {[%emt 0:10:15]} 21. Rd1 {[%emt 0:00:12]} Rxd5 {[%emt 0:00:33]} 22. Qxd5+ {[%emt 0:00:00]} Kh8 {[%emt 0:00:21]} 23. Qe6 {[%emt 0:04:31]} a5 {[%emt 0:09:58]} 24. a3 {[%emt 0:01:47]} Qb6 {[%emt 0:00:33]} 25. Rd2 {[%emt 0:04:04]} Rf8 {[%emt 0:02:24]} 26. e3 {[%emt 0:00:35] Active counter play!} a4 {[%emt 0:00:20]} 27. Nd4 {[%emt 0:01:00] And now Qg6 would win.} Qa5 {[%emt 0:00:38]} 28. Rd1 {[%emt 0:00:27]} (28. Nxc6 $2 {too greedy.} Qxd2 29. f4 bxc6 $19) 28... Qb6 {[%emt 0:08:18] [#]} (28... Nxd4 $16 29. exd4 Qb5) 29. Rd2 {[%emt 0:02:08]} ({White must play} 29. Nxc6 $1 $18 bxc6 30. Qd6) 29... Qa5 $1 {[%emt 0:00:08]} 30. Rd1 {[%emt 0:00:40]} (30. Nxc6 Qxd2 31. f4 bxc6 $19) (30. Re2 $16) 30... Qc5 {[%emt 0:01:02]} (30... Qb6 $1 $11 {keeps the balance.}) 31. Nxc6 {[%emt 0:00:09]} (31. Qe4 $16) 31... Qc2 $14 {[%emt 0:00:12]} 32. Rf1 {[%emt 0:00:36]} bxc6 {[%emt 0:00:18][%mdl 4096] Endgame KQR-KQR} 33. Qd6 {[%emt 0:00:18] Wards off Rb8} Rc8 {[%emt 0:00:42] [#]} 34. Qe5 {[%emt 0:00:38]} (34. Qd1 $1 $16 {[%cal Rd1c2]} Qxb2 35. Qxa4) 34... c5 {[%emt 0:02:27]} 35. g4 {[%emt 0:00:15]} (35. f4 {feels hotter.} Rd8 36. fxg5 Rd2 37. Rf8+) 35... c4 {[%emt 0:00:40]} (35... Rd8 $11) 36. Qf5 $1 {[%emt 0:00:32]} Qxf5 {[%emt 0:00:24]} 37. gxf5 {[%emt 0:00:00] KR-KR} Rb8 {[%emt 0:00:10]} (37... h5 $14) 38. Rc1 $16 {[%emt 0:00:06]} Rc8 {[%emt 0:01:45]} 39. Kg2 {[%emt 0:00:07]} Kg8 {[%emt 0:00:02]} 40. Kf3 {[%emt 0:00:19]} Kf7 {[%emt 0:00:20]} 41. Rd1 {[%emt 0:33:03]} ({Better is} 41. e4 $16) 41... c3 $11 {[%emt 0:31:09] The position is equal.} 42. bxc3 {[%emt 0:00:06]} Rxc3 {[%emt 0:00:10]} 43. Rd7+ {[%emt 0:00:06]} Kf6 {[%emt 0:01:39]} 44. Ke4 {[%emt 0:00:00]} Rxa3 {[%emt 0:00:00]} 45. Rd6+ {[%emt 0:00:00]} Ke7 {[%emt 0:00:00]} 46. Ra6 {[%emt 0:00:00]} Ra2 {[%emt 0:00:00]} 47. Ke5 {[%emt 0:00:00]} Rxf2 {[%emt 0:00:00]} 48. Ra7+ {[%emt 0:00:00]} Kf8 {[%emt 0:00:00]} 49. Rxa4 {[%emt 0:00:00]} Rxh2 {[%emt 0:00:00]} 50. Ke6 {[%emt 0:00:00][%cal Ra4a8]} Kg8 {[%emt 0:00:00]} 51. f6 {[%emt 0:00:00]} gxf6 {[%emt 0:00:00]} 52. Kxf6 {[%emt 0:00:00]} Rb2 {[%emt 0:00:00]} 53. Ra8+ {[%emt 0:00:00]} Kh7 {[%emt 0:00:00]} 54. Ra7+ {[%emt 0:00:00]} Kg8 {[%emt 0:00:00]} 55. Ra8+ {[%emt 0:01:08]} Kh7 {[%emt 0:00:00] ...Rf2+ is the strong threat.} 56. Ra7+ {[%emt 0:00:06]} Kg8 {[%emt 0:00:00]} 57. Ra8+ {[%emt 0:01:20]} Kh7 {[%emt 0:00:00] White must now prevent ...Rf2+.} 58. Ra7+ {[%emt 0:00:04]} Kg8 {[%emt 0:00:17] White really could win this.   Weighted Error Value: White=0.26 (precise) /Black=0.22 (precise)} 1/2-1/2

[Event "1st FIDE Olympiad DIS 2023"]
[Site "Belgrade"]
[Date "2023.02.03"]
[Round "5.7"]
[White "Infiesto, James"]
[Black "Gurbanov, Andrei"]
[Result "1/2-1/2"]
[ECO "C25"]
[WhiteElo "1930"]
[BlackElo "2275"]
[Annotator "TA"]
[PlyCount "148"]
[EventDate "2023.01.30"]
[EventType "team-tourn"]
[EventCountry "SRB"]
[SourceTitle "playchess.com"]
[Source "ChessBase"]
[SourceQuality "1"]
[WhiteTeam "Philippines"]
[BlackTeam "Israel"]
[WhiteTeamCountry "PHI"]
[BlackTeamCountry "ISR"]
[TimeControl "40/5400+30:1800+30"]

{[%evp 9,148,0,54,0,43,52,59,29,61,43,101,99,114,84,134,124,143,90,106,71,71,43,39,39,58,21,30,14,83,-13,-10,-66,46,-63,-65,-70,-71,-74,-59,-61,-69,-79,-79,-79,-79,-89,-89,-116,-116,-97,-81,-89,-89,-89,-89,-89,-89,-90,-75,-75,-75,-122,-94,-94,-94,-94,-94,-133,-133,-100,-100,-145,-176,-180,-165,-226,-226,-226,-226,-275,-133,-133,-133,-135,-95,-161,-133,-133,-131,-133,-133,-133,-133,-227,-133,-133,-133,-133,-133,-133,-130,-130,-131,-131,-130,-130,-124,-124,-124,-124,-124,-124,-124,-124,-18,-18,-18,-18,-18,-18,0,-18,-18,-18,-18,-18,-18,-18,0,-18,-3,-18,0,-18,0,-12,0,-18,-18,-26,0]} 1. e4 {[%emt 0:00:02]} e5 {[%emt 0:00:05]} 2. Nc3 {[%emt 0:00:14]} d6 {[%emt 0:01:38]} 3. g3 {[%emt 0:00:09]} g6 {[%emt 0:01:01]} 4. Bg2 {[%emt 0:00:02]} Bg7 {[%emt 0:00:09]} 5. Nge2 {[%emt 0:00:14]} h5 {[%emt 0:02:37]} (5... Nc6 $11) 6. h3 {[%emt 0:01:08] C25: Vienna Game: Alternatives to 2...Nf6.} (6. d4 $14) 6... c6 {[%emt 0:04:07]} 7. d4 {[%emt 0:03:32] [#]} Qc7 $146 {[%emt 0:02:18]} ({Predecessor:} 7... Qb6 8. dxe5 dxe5 9. O-O Nd7 10. b3 Bh6 11. Na4 Qc7 12. c4 Bxc1 13. Rxc1 h4 {0-1 Pesotsky,V (2343)-Minasian,A (2557) EU-ch 10th Budva 2009 (10)}) 8. Be3 {[%emt 0:00:06] White is slightly better.} Nd7 {[%emt 0:01:37]} 9. Qd2 {[%emt 0:00:34]} Nb6 {[%emt 0:02:49]} (9... Ngf6 $14) 10. b3 $1 $16 {[%emt 0:00:02]} Be6 {[%emt 0:07:10]} 11. Rd1 {[%emt 0:00:59]} h4 {[%emt 0:11:50]} ({Black should try} 11... Ne7) 12. g4 $1 {[%emt 0:04:41]} Ne7 {[%emt 0:03:23]} 13. dxe5 {[%emt 0:18:21]} (13. a4 $142) 13... dxe5 {[%emt 0:00:19]} 14. O-O {[%emt 0:04:06]} Rd8 {[%emt 0:04:08]} 15. Qxd8+ {[%emt 0:01:00]} Qxd8 {[%emt 0:00:05]} 16. Rxd8+ {[%emt 0:00:05]} Kxd8 {[%emt 0:00:03]} 17. Rd1+ {[%emt 0:00:10]} Kc7 {[%emt 0:00:23]} 18. Kf1 {[%emt 0:00:57]} Bf6 {[%emt 0:03:08]} (18... f6 $11) 19. Ke1 {[%emt 0:00:55] White is more active.} (19. f4 $1 $16) 19... g5 $11 {[%emt 0:00:12]} 20. Bc5 {[%emt 0:01:11]} ({White should play} 20. a4 $11) 20... Nbc8 {[%emt 0:02:05]} (20... Ng6 $15) 21. a4 {[%emt 0:00:16]} (21. Nd5+ $1 $14 cxd5 22. exd5 Nxd5 23. Bxd5) 21... Ng6 $15 {[%emt 0:00:20]} 22. Bf1 {[%emt 0:00:39]} b6 {[%emt 0:01:07]} 23. Ba3 {[%emt 0:00:01]} Be7 {[%emt 0:01:14]} 24. Bxe7 {[%emt 0:01:33]} Ncxe7 {[%emt 0:00:06][%cal Bc8e7,Be7g6,Bg6f4][%mdl 32]} 25. f3 {[%emt 0:05:05]} a5 {[%emt 0:01:25]} 26. Nc1 {[%emt 0:00:30]} Nf4 {[%emt 0:02:32]} 27. Nd3 {[%emt 0:00:37]} Neg6 {[%emt 0:00:13]} 28. Ne2 {[%emt 0:00:57]} Nxd3+ {[%emt 0:00:45]} 29. Rxd3 {[%emt 0:00:02]} Rb8 {[%emt 0:01:43]} 30. Nc3 {[%emt 0:00:24]} Nf4 {[%emt 0:00:42]} 31. Rd1 {[%emt 0:00:15]} Bd7 {[%emt 0:00:29]} 32. Kf2 {[%emt 0:02:50]} Ra8 {[%emt 0:05:03]} 33. Ke3 {[%emt 0:01:30]} Bc8 {[%emt 0:00:49]} 34. Ne2 {[%emt 0:01:01]} Ne6 {[%emt 0:00:19]} 35. Nc3 {[%emt 0:02:56]} (35. Nc1 $142) 35... Ba6 $17 {[%emt 0:00:23]} 36. Bxa6 {[%emt 0:00:29]} Rxa6 {[%emt 0:00:02][%mdl 4096] Endgame KRN-KRN} 37. Ne2 {[%emt 0:00:07]} Ra8 {[%emt 0:00:21]} 38. Ra1 {[%emt 0:03:16]} Rd8 {[%emt 0:01:38]} 39. Rh1 {[%emt 0:01:04]} b5 {[%emt 0:03:36]} 40. Ra1 {[%emt 0:01:16]} Kb6 {[%emt 0:01:09]} 41. Rh1 {[%emt 0:35:21]} Kc5 {[%emt 0:31:18]} 42. axb5 {[%emt 0:02:01]} (42. Rb1 {keeps fighting.}) 42... cxb5 $19 {[%emt 0:00:08]} 43. Ra1 {[%emt 0:00:06]} Kb6 {[%emt 0:00:28]} 44. Rb1 {[%emt 0:02:19]} Kc6 {[%emt 0:01:58]} (44... b4 $19 {is more deadly. And now ...Nf4 would win.} 45. Ra1 Kb5) 45. Ra1 $17 {[%emt 0:00:34] [#]} Ra8 {[%emt 0:00:06]} 46. Kd3 {[%emt 0:10:05]} Kc5 {[%emt 0:02:47] Hoping for ...a4.} 47. Kc3 {[%emt 0:00:34]} (47. c3 $17) 47... a4 {[%emt 0:01:39] aiming for ...b4+.} 48. b4+ {[%emt 0:03:29]} Kc6 {[%emt 0:02:18] Strongly threatening ...Rd8.} 49. Kd3 {[%emt 0:05:05]} Rd8+ {[%emt 0:00:29]} 50. Ke3 {[%emt 0:00:59]} Kb6 {[%emt 0:00:30]} 51. Rc1 {[%emt 0:14:50] [#]} (51. c3 $17 {is a better defense.}) 51... Rc8 {[%emt 0:01:52]} (51... Nd4 $1 $19 {...Rc8 is the strong threat.} 52. Nxd4 Rxd4) 52. c3 {[%emt 0:00:47]} Rd8 {[%emt 0:00:05]} 53. Ra1 {[%emt 0:00:51]} Kc6 {[%emt 0:01:28]} 54. Rh1 {[%emt 0:04:00]} f6 {[%emt 0:02:53]} 55. Rf1 {[%emt 0:00:36]} Rd6 {[%emt 0:03:34]} 56. Rh1 {[%emt 0:00:55]} Nf8 {[%emt 0:02:39]} 57. Nc1 {[%emt 0:02:26]} Nd7 {[%emt 0:00:07]} 58. Nd3 {[%emt 0:00:32]} Nb6 {[%emt 0:00:11]} 59. Ra1 {[%emt 0:00:00]} Nc4+ {[%emt 0:00:00]} 60. Ke2 {[%emt 0:00:00]} Rd8 {[%emt 0:00:00]} 61. Rd1 {[%emt 0:00:00][%cal Od3e5]} a3 {[%emt 0:00:00]} ({Better is} 61... Kc7 $17 62. Ra1 Kb6) 62. Ra1 $11 {[%emt 0:00:00]} ({Don't go for} 62. Nxe5+ $2 fxe5 63. Rxd8 Nb2 $19) 62... Kb6 {[%emt 0:00:00]} 63. Ra2 {[%emt 0:00:00]} Rd7 {[%emt 0:00:00]} 64. Nc5 {[%emt 0:00:00]} Rd8 {[%emt 0:00:00]} 65. Nd3 {[%emt 0:00:00]} Ra8 {[%emt 0:00:00]} 66. Nc5 {[%emt 0:00:00]} Kc6 {[%emt 0:00:00]} 67. Nd3 {[%emt 0:00:00]} Kd6 {[%emt 0:00:00]} 68. Nc5 {[%emt 0:00:00]} Kc6 {[%emt 0:00:00]} 69. Nd3 {[%emt 0:00:00]} Nb6 {[%emt 0:00:00]} 70. Nc5 {[%emt 0:00:00]} Nc4 {[%emt 0:00:00]} 71. Nd3 {[%emt 0:00:00]} Rd8 {[%emt 0:00:00]} 72. Nc5 {[%emt 0:00:00]} Kb6 {[%emt 0:00:00]} 73. Nd3 {[%emt 0:00:00]} Rc8 {[%emt 0:00:00]} 74. Nc5 {[%emt 0:00:00]} Rd8 {[%emt 0:32:22] Black had all chances to win.   Weighted Error Value: White=0.21 (precise) /Black=0.18 (very precise)} 1/2-1/2

[Event "1st FIDE Olympiad DIS 2023"]
[Site "Belgrade"]
[Date "2023.02.03"]
[Round "5.8"]
[White "Gomez Fernandez, Alfredo"]
[Black "Zhukovskaya, Nina"]
[Result "1-0"]
[ECO "C00"]
[WhiteElo "1760"]
[BlackElo "1474"]
[Annotator "NA COMBH"]
[PlyCount "129"]
[EventDate "2023.01.30"]
[EventType "team-tourn"]
[EventCountry "SRB"]
[SourceTitle "playchess.com"]
[Source "ChessBase"]
[SourceQuality "1"]
[WhiteTeam "ICCD"]
[BlackTeam "Kazakhstan"]
[WhiteTeamCountry "ESP"]
[BlackTeamCountry "KAZ"]
[TimeControl "40/5400+30:1800+30"]

1. e4 {[%emt 1:31:00]} e6 {[%emt 0:00:17]} 2. d3 {[%emt 0:00:00]} Bc5 {[%emt 0:04:01]} 3. Nf3 {[%emt 0:00:00]} Nc6 {[%emt 0:00:51]} 4. d4 {[%emt 0:00:00]} Bb6 {[%emt 0:00:54]} 5. c3 {[%emt 0:00:00]} d6 {[%emt 0:02:57]} 6. Bd3 {[%emt 0:00:00]} e5 {[%emt 0:03:49]} 7. d5 {[%emt 0:00:00]} Nce7 {[%emt 0:00:53]} 8. h3 {[%emt 0:00:00]} h6 {[%emt 0:01:19]} 9. a4 {[%emt 0:00:00]} a6 {[%emt 0:00:41]} 10. a5 {[%emt 0:00:00]} Ba7 {[%emt 0:00:12]} 11. Qe2 {[%emt 0:00:00]} Bd7 {[%emt 0:01:00]} 12. Na3 {[%emt 0:00:00]} Nf6 {[%emt 0:05:16]} 13. Be3 {[%emt 0:00:00]} Bxe3 {[%emt 0:01:40]} 14. Qxe3 {[%emt 0:00:00]} c6 {[%emt 0:04:33]} 15. Nc4 {[%emt 0:00:00]} Nc8 {[%emt 0:00:43]} 16. dxc6 {[%emt 0:00:00]} Bxc6 {[%emt 0:00:42]} 17. O-O {[%emt 0:00:00]} O-O {[%emt 0:00:11]} 18. Rfd1 {[%emt 0:00:00]} Qe7 {[%emt 0:02:55]} 19. Bc2 {[%emt 0:00:00]} Rd8 {[%emt 0:01:16]} 20. Ne1 {[%emt 0:00:00]} Ne8 {[%emt 0:11:33]} 21. Qg3 {[%emt 0:00:00]} Nf6 {[%emt 0:10:29]} 22. Qe3 {[%emt 0:00:00]} Nh7 {[%emt 0:07:20]} 23. Nd3 {[%emt 0:00:00]} Bb5 {[%emt 0:03:34]} 24. Na3 {[%emt 0:00:00]} Bc6 {[%emt 0:02:07]} 25. f3 {[%emt 0:00:00]} Qc7 {[%emt 0:02:49]} 26. Nb1 {[%emt 0:00:00]} b5 {[%emt 0:05:25]} 27. Qd2 {[%emt 0:00:00]} Ne7 {[%emt 0:02:33]} 28. Nb4 {[%emt 0:00:00]} Bb7 {[%emt 0:02:03]} 29. Bb3 {[%emt 0:00:00]} Nf6 {[%emt 0:01:02]} 30. Qf2 {[%emt 0:00:00]} Qc5 {[%emt 0:04:15]} 31. Nd2 {[%emt 0:00:00]} Qxf2+ {[%emt 0:00:48]} 32. Kxf2 {[%emt 0:00:00]} d5 {[%emt 0:01:31]} 33. exd5 {[%emt 0:00:00]} Bxd5 {[%emt 0:01:16]} 34. Nxd5 {[%emt 0:00:00]} Nfxd5 {[%emt 0:00:37]} 35. g3 {[%emt 0:00:00]} Kf8 {[%emt 0:00:59]} 36. Ne4 {[%emt 0:00:00]} Rac8 {[%emt 0:02:21]} 37. Ke2 {[%emt 0:00:41]} f5 {[%emt 0:01:06]} 38. Nf2 {[%emt 0:00:07]} Nf6 {[%emt 0:00:43]} 39. Be6 {[%emt 0:01:15]} Rb8 {[%emt 0:02:22]} 40. Nd3 {[%emt 0:00:37]} e4 {[%emt 0:01:23]} 41. Nc5 {[%emt 0:30:52]} exf3+ {[%emt 0:32:25]} 42. Kxf3 {[%emt 0:00:25]} Ra8 {[%emt 0:01:50]} 43. Nxa6 {[%emt 0:06:00]} Rxd1 {[%emt 0:01:31]} 44. Rxd1 {[%emt 0:01:43]} Rxa6 {[%emt 0:00:36]} 45. Rd8+ {[%emt 0:00:05]} Ne8 {[%emt 0:00:39]} 46. Bd7 {[%emt 0:00:06]} Kf7 {[%emt 0:00:44]} 47. Bxe8+ {[%emt 0:00:25]} Kf6 {[%emt 0:01:24]} 48. b4 {[%emt 0:00:20]} Ke5 {[%emt 0:02:27]} 49. Bxb5 {[%emt 0:00:18]} Ra7 {[%emt 0:00:31]} 50. Rd7 {[%emt 0:01:01]} Nc8 {[%emt 0:00:42]} 51. Rxa7 {[%emt 0:05:16]} Nxa7 {[%emt 0:00:02]} 52. Bd7 {[%emt 0:02:38]} g6 {[%emt 0:00:24]} 53. b5 {[%emt 0:00:12]} Kd6 {[%emt 0:00:34]} 54. b6 {[%emt 0:00:16]} Nc6 {[%emt 0:00:59]} 55. Bxc6 {[%emt 0:00:13]} Kxc6 {[%emt 0:00:02]} 56. Kf4 {[%emt 0:01:01]} Kb7 {[%emt 0:00:41]} 57. h4 {[%emt 0:00:14]} Kc6 {[%emt 0:00:33]} 58. h5 {[%emt 0:00:17]} g5+ {[%emt 0:01:24]} 59. Kxf5 {[%emt 0:00:08]} Kb7 {[%emt 0:00:30]} 60. Ke5 {[%emt 0:00:14]} Kc6 {[%emt 0:00:07]} 61. c4 {[%emt 0:00:23]} Kb7 {[%emt 0:00:19]} 62. Kd6 {[%emt 0:00:25]} Kb8 {[%emt 0:00:15]} 63. Kd7 {[%emt 0:00:32]} Kb7 {[%emt 0:00:09]} 64. c5 {[%emt 0:01:00]} g4 {[%emt 0:00:22]} 65. c6+ {[%emt 0:00:24]} 1-0